lending/lending_fUSD_20250131
["ID","MTS","AMOUNT","RATE_DAILY","PERIOD"]
[351137376,1738348279214,-500.0,0.00018903,2]
[351137377,1738348279223,-500.0,0.00018903,2]
[351137378,1738348279232,-500.0,0.00018903,2]
[351137379,1738348279242,-1337.76,0.00018904,9]
[351137380,1738348279252,-1337.76,0.00018904,9]
[351137381,1738348279262,-1337.76,0.00018904,9]
[351137382,1738348279272,-1337.76,0.00018904,9]
[351137383,1738348279282,-1337.76,0.00018904,9]
[351137384,1738348279292,-1337.76,0.00018904,9]
[351137385,1738348279302,-1337.76,0.00018904,9]
[351137386,1738348279312,-1337.76,0.00018904,9]
[351137387,1738348279321,-1337.76,0.00018904,9]
[351137388,1738348279331,-1337.76,0.00018904,9]
[351137389,1738348279342,-1337.76,0.00018904,9]
[351137390,1738348279352,-1337.76,0.00018904,9]
[351137391,1738348279362,-1337.76,0.00018904,9]
[351137392,1738348279372,-1337.76,0.00018904,9]
[351137393,1738348279383,-1337.76,0.00018904,9]
[351137394,1738348279392,-1337.76,0.00018904,9]
[351137395,1738348279402,-1337.76,0.00018904,9]
[351137396,1738348279411,-1337.76,0.00018904,9]
[351137397,1738348279420,-1337.76,0.00018904,9]
[351137398,1738348279429,-1337.76,0.00018904,9]
[351137399,1738348279441,-1337.76,0.00018904,9]
[351137400,1738348279451,-1337.76,0.00018904,9]
[351137401,1738348279460,-1337.76,0.00018904,9]
[351137402,1738348279469,-1337.8741776,0.00018904,9]
[351137403,1738348279479,-1455.79,0.00018904,2]
[351137404,1738348279489,-686.9,0.00018904,2]
[351137405,1738348279499,-500.0,0.00018904,2]
[351137406,1738348279513,-2551.27,0.00018904,2]
[351137407,1738348279522,-1359.74,0.00018904,2]
[351137408,1738348279532,-3164.08,0.00018904,2]
[351137409,1738348279542,-1771.52,0.00018904,2]
[351137410,1738348279551,-3352.95,0.00018904,2]
[351137411,1738348279561,-1723.08,0.00018904,2]
[351137412,1738348279571,-904.61,0.00018904,2]
[351137413,1738348279582,-3205.13,0.00018904,2]
[351137414,1738348279593,-2877.99,0.00018904,2]
[351137415,1738348279603,-2087.9,0.00018904,2]
[351137416,1738348279613,-500.0,0.00018904,2]
[351137417,1738348279623,-2031.19,0.00018904,2]
[351137418,1738348279632,-1464.79,0.00018904,2]
[351137419,1738348279641,-500.0,0.00018904,2]
[351137420,1738348279651,-7094.67,0.00018904,2]
[351137421,1738348279660,-846.73,0.00018904,2]
[351137422,1738348279670,-1572.93,0.00018904,2]
[351137423,1738348279680,-1436.17,0.00018904,2]
[351137424,1738348279692,-150.0,0.00018933,2]
[351137425,1738348279702,-212.0,0.0001896,2]
[351137426,1738348279712,-205.0,0.0001896,2]
[351137427,1738348279721,-209.0,0.0001896,2]
[351137428,1738348279731,-153.408906,0.00018968,2]
[351137429,1738348279740,-153.963521,0.00018968,2]
[351137430,1738348279750,-150.0,0.0001899,2]
[351137431,1738348279759,-150.0,0.00018997,2]
[351137432,1738348279769,-8032.85482557,0.00018999,3]
[351137433,1738348279779,-1573799.1447547,0.00019,2]
[351137434,1738348279788,-6040.10787318,0.00019,21]
[351137435,1738348279798,-5000.0,0.00019,3]
[351137436,1738348279807,-5000.0,0.00019,2]
[351137437,1738348279817,-1000.0,0.00019,2]
[351137438,1738348279827,-6320.1513632,0.00019,2]
[351137439,1738348279837,-151.0,0.00019,2]
[351137440,1738348279846,-151.0,0.00019,2]
[351137441,1738348279855,-151.0,0.00019,2]
[351137442,1738348279865,-151.0,0.00019,2]
[351137443,1738348279875,-151.0,0.00019,2]
[351137444,1738348279885,-151.0,0.00019,2]
[351137445,1738348279894,-151.0,0.00019,2]
[351137446,1738348279903,-151.0,0.00019,2]
[351137447,1738348279912,-151.0,0.00019,2]
[351137448,1738348279922,-151.0,0.00019,2]
[351137449,1738348279931,-151.0,0.00019,2]
[351137450,1738348279943,-151.0,0.00019,2]
[351137451,1738348279953,-151.0,0.00019,2]
[351137452,1738348279962,-151.0,0.00019,2]
[351137453,1738348279972,-151.0,0.00019,2]
[351137454,1738348279982,-151.0,0.00019,2]
[351137455,1738348279992,-222.0,0.00019,2]
[351137456,1738348280001,-151.0,0.00019,2]
[351137457,1738348280010,-151.56838,0.00019,2]
[351137458,1738348280021,-151.0,0.00019,2]
[351137459,1738348280031,-151.0,0.00019,2]
[351137460,1738348280042,-151.0,0.00019,2]
[351137461,1738348280052,-151.0,0.00019,2]
[351137462,1738348280064,-151.0,0.00019,2]
[351137463,1738348280074,-151.0,0.00019,2]
[351137464,1738348280085,-1000.0,0.00019,2]
[351137465,1738348280094,-4828.93,0.00019,2]
[351137466,1738348280103,-672.567098,0.00019,2]
[351137467,1738348280112,-672.567098,0.00019,2]
[351137468,1738348280121,-151.0,0.00019,2]
[351137469,1738348280131,-151.0,0.00019,2]
[351137470,1738348280140,-809.512431,0.00019,2]
[351137471,1738348280149,-809.512431,0.00019,2]
[351137472,1738348280159,-151.0,0.00019,2]
[351137473,1738348280168,-151.0,0.00019,2]
[351137474,1738348280176,-151.315762,0.00019,2]
[351137475,1738348280188,-151.0,0.00019,2]
[351137476,1738348280197,-151.0,0.00019,2]
[351137477,1738348280206,-151.0,0.00019,2]
[351137478,1738348280216,-246.225,0.00019,2]
[351137479,1738348280225,-246.225,0.00019,2]
[351137480,1738348280234,-151.0,0.00019,2]
[351137481,1738348280243,-151.0,0.00019,2]
[351137482,1738348280253,-1117.297616,0.00019,2]
[351137483,1738348280262,-151.0,0.00019,2]
[351137484,1738348280271,-151.0,0.00019,2]
[351137485,1738348280281,-151.0,0.00019,2]
[351137486,1738348280290,-1117.297616,0.00019,2]
[351137487,1738348280299,-162.730615,0.00019,2]
[351137488,1738348280308,-151.0,0.00019,2]
[351137489,1738348280317,-162.730615,0.00019,2]
[351137490,1738348280327,-151.0,0.00019,2]
[351137491,1738348280335,-151.0,0.00019,2]
[351137492,1738348280346,-151.0,0.00019,2]
[351137493,1738348280355,-151.0,0.00019,2]
[351137494,1738348280364,-183.254456,0.00019,2]
[351137495,1738348280374,-151.0,0.00019,2]
[351137496,1738348280383,-153.167183,0.00019,2]
[351137497,1738348280393,-500.0,0.00019037,2]
[351137498,1738348280402,-500.0,0.00019037,2]
[351137499,1738348280412,-500.0,0.00019037,2]
[351137500,1738348280421,-500.0,0.00019037,2]
[351137501,1738348280431,-500.0,0.00019037,2]
[351137502,1738348280445,-786.06,0.00019037,2]
[351137503,1738348280454,-744.03,0.00019037,2]
[351137504,1738348280464,-1041.45,0.00019037,2]
[351137505,1738348280473,-679.36,0.00019037,2]
[351137506,1738348280483,-500.0,0.00019037,2]
[351137507,1738348280493,-639.49,0.00019037,2]
[351137508,1738348280502,-983.34,0.00019037,2]
[351137509,1738348280518,-853.27,0.00019037,2]
[351137510,1738348280527,-2290.49,0.00019037,2]
[351137511,1738348280538,-15748.87,0.00019037,2]
[351137512,1738348280548,-1756.23,0.00019037,2]
[351137513,1738348280558,-5804.66,0.00019037,2]
[351137514,1738348280568,-1011.15,0.00019037,2]
[351137515,1738348280577,-1398.05,0.00019037,2]
[351137516,1738348280587,-706.26,0.00019037,2]
[351137517,1738348280597,-1396.62,0.00019037,2]
[351137518,1738348280606,-1348.69,0.00019037,2]
[351137519,1738348280617,-1000.0,0.00019037,2]
[351137520,1738348280627,-1491.37,0.00019037,2]
[351137521,1738348280636,-500.0,0.00019038,2]
[351137522,1738348280646,-500.0,0.00019038,2]
[351137523,1738348280656,-500.0,0.00019038,2]
[351137524,1738348280665,-500.0,0.00019038,2]
[351137525,1738348280674,-592.09,0.00019038,2]
[351137526,1738348280683,-541.54,0.00019038,2]
[351137527,1738348280695,-661.57,0.00019038,2]
[351137528,1738348280833,-568.28,0.00019038,2]
[351137529,1738348280843,-517.91,0.00019038,2]
[351137530,1738348280853,-500.0,0.00019038,2]
[351137531,1738348280863,-573.54,0.00019038,2]
[351137532,1738348280872,-730.37,0.00019038,2]
[351137533,1738348280882,-536.25,0.00019038,2]
[351137534,1738348280891,-978.34,0.00019038,2]
[351137535,1738348280901,-519.92,0.00019038,2]
[351137536,1738348280910,-932.35,0.00019038,2]
[351137537,1738348280919,-1577.73,0.00019038,2]
[351137538,1738348280929,-647.42,0.00019038,2]
[351137539,1738348280942,-286.106421,0.00019038,2]
[351137540,1738348280951,-500.0,0.00019038,2]
[351137541,1738348280960,-551.45,0.00019038,2]
[351137542,1738348280970,-2652.51,0.00019038,2]
[351137543,1738348280979,-616.52,0.00019038,2]
[351137544,1738348280988,-611.99,0.00019038,2]
[351137545,1738348280998,-1917.23,0.00019038,2]
[351137546,1738348281007,-1010.98,0.00019038,2]
[351137547,1738348281017,-345.181563,0.00019038,2]
[351137548,1738348281026,-1746.14,0.00019038,2]
[351137549,1738348281035,-1127.11,0.00019038,2]
[351137550,1738348281045,-957.27,0.00019038,2]
[351137551,1738348281054,-683.39,0.00019038,2]
[351137552,1738348281063,-834.53,0.00019038,2]
[351137553,1738348281072,-3304.95,0.00019038,2]
[351137554,1738348281082,-162.579987,0.00019038,2]
[351137555,1738348281091,-1375.96,0.00019038,2]
[351137556,1738348281100,-1152.1,0.00019038,2]
[351137557,1738348281110,-637.73,0.00019038,2]
[351137558,1738348281119,-861.45,0.00019038,2]
[351137559,1738348281129,-1174.79,0.00019038,2]
[351137560,1738348281138,-1552.68,0.00019038,2]
[351137561,1738348281147,-5050.15,0.00019038,2]
[351137562,1738348281157,-1714.15,0.00019038,2]
[351137563,1738348281166,-970.54,0.00019038,2]
[351137564,1738348281175,-974.2,0.00019038,2]
[351137565,1738348281183,-2977.2,0.00019038,2]
[351137566,1738348281199,-2130.65,0.00019038,2]
[351137567,1738348281209,-2472.78,0.00019038,2]
[351137568,1738348281219,-164.88144,0.00019038,2]
[351137569,1738348281228,-3082.33,0.00019038,2]
[351137570,1738348281238,-2310.79,0.00019038,2]
[351137571,1738348281248,-1236.46,0.00019038,2]
[351137572,1738348281257,-500.0,0.00019038,2]
[351137573,1738348281267,-159.421069,0.00019038,2]
[351137574,1738348281276,-1531.95,0.00019038,2]
[351137575,1738348281286,-1897.38,0.00019038,2]
[351137576,1738348281295,-500.0,0.00019038,2]
[351137577,1738348281304,-4150.61,0.00019038,2]
[351137578,1738348281314,-4363.87,0.00019038,2]
[351137579,1738348281324,-500.0,0.00019038,2]
[351137580,1738348281334,-977.31,0.00019038,2]
[351137581,1738348281343,-500.0,0.00019038,2]
[351137582,1738348281352,-500.0,0.00019038,2]
[351137583,1738348281362,-755.3,0.00019038,2]
[351137584,1738348281371,-1593.71,0.00019038,2]
[351137585,1738348281380,-789.61,0.00019038,2]
[351137586,1738348281390,-500.0,0.00019039,2]
[351137587,1738348281399,-500.0,0.00019039,2]
[351137588,1738348281409,-500.0,0.00019039,2]
[351137589,1738348281418,-772.66,0.00019039,2]
[351137590,1738348281427,-500.0,0.00019039,2]
[351137591,1738348281436,-500.0,0.00019039,2]
[351137592,1738348281450,-606.93,0.00019039,2]
[351137593,1738348281459,-522.94,0.00019039,2]
[351137594,1738348281468,-691.72,0.00019039,2]
[351137595,1738348281478,-694.08,0.00019039,2]
[351137596,1738348281487,-500.0,0.00019039,2]
[351137597,1738348281501,-500.0,0.00019039,2]
[351137598,1738348281510,-622.01,0.00019039,2]
[351137599,1738348281520,-500.0,0.00019039,2]
[351137600,1738348281529,-500.0,0.00019039,2]
[351137601,1738348281541,-799.89,0.00019039,2]
[351137602,1738348281550,-631.85619493,0.00019039,2]
[351137603,1738348281559,-666.3,0.00019039,2]
[351137604,1738348281571,-536.21,0.00019039,2]
[351137605,1738348281581,-1030.96,0.00019039,2]
[351137606,1738348281591,-872.1,0.00019039,2]
[351137607,1738348281600,-544.21,0.00019039,2]
[351137608,1738348281610,-4715.16,0.00019039,2]
[351137609,1738348281620,-993.3,0.00019039,2]
[351137610,1738348281630,-2605.9,0.00019039,2]
[351137611,1738348281639,-4721.91,0.00019039,2]
[351137612,1738348281649,-2283.47,0.00019039,2]
[351137613,1738348281658,-939.45,0.00019039,2]
[351137614,1738348281668,-2389.08,0.00019039,2]
[351137615,1738348281677,-965.04,0.00019039,2]
[351137616,1738348281690,-557.93,0.00019039,2]
[351137617,1738348281699,-2395.63,0.00019039,2]
[351137618,1738348281708,-1060.87,0.00019039,2]
[351137619,1738348281717,-1276.49,0.00019039,2]
[351137620,1738348281726,-500.0,0.00019039,2]
[351137621,1738348281735,-973.6,0.00019039,2]
[351137622,1738348281745,-870.13,0.00019039,2]
[351137623,1738348281755,-1177.58,0.00019039,2]
[351137624,1738348281764,-510.61,0.0001904,2]
[351137625,1738348281774,-271.91229466,0.0001904,2]
[351137626,1738348281783,-500.0,0.0001904,2]
[351137627,1738348281793,-500.0,0.0001904,2]
[351137628,1738348281802,-500.0,0.0001904,2]
[351137629,1738348281813,-1455.79,0.00019041,2]
[351137630,1738348281823,-686.9,0.00019041,2]
[351137631,1738348281832,-500.0,0.00019041,2]
[351137632,1738348281841,-2551.27,0.00019041,2]
[351137633,1738348281851,-1359.74,0.00019041,2]
[351137634,1738348281861,-3164.08,0.00019041,2]
[351137635,1738348281872,-1771.52,0.00019041,2]
[351137636,1738348281881,-3352.95,0.00019041,2]
[351137637,1738348281891,-1723.08,0.00019041,2]
[351137638,1738348281900,-904.61,0.00019041,2]
[351137639,1738348281909,-3205.13,0.00019041,2]
[351137640,1738348281919,-2877.99,0.00019041,2]
[351137641,1738348281928,-2087.9,0.00019041,2]
[351137642,1738348281939,-2031.19,0.00019041,2]
[351137643,1738348281949,-1464.79,0.00019041,2]
[351137644,1738348281958,-625.18953775,0.00019041,2]
[351137645,1738348281967,-7094.67,0.00019041,2]
[351137646,1738348281976,-846.73,0.00019041,2]
[351137647,1738348281986,-1572.93,0.00019041,2]
[351137648,1738348281996,-1436.17,0.00019041,2]
[351137649,1738348282005,-150.0,0.00019046,2]
[351137650,1738348282014,-172.14,0.00019062,2]
[351137651,1738348282025,-150.0,0.00019065,2]
[351137652,1738348282035,-1000.0,0.000191,2]
[351137653,1738348282044,-150.0,0.00019103,2]
[351137654,1738348282053,-150.0,0.00019118,2]
[351137655,1738348282063,-1500.0,0.00019123,2]
[351137656,1738348282073,-500.0,0.00019145,2]
[351137657,1738348282083,-150.0,0.00019159,2]
[351137658,1738348282093,-479.64284648,0.00019174,2]
[351137659,1738348282103,-500.0,0.00019174,2]
[351137660,1738348282112,-500.0,0.00019174,2]
[351137661,1738348282121,-500.0,0.00019174,2]
[351137662,1738348282131,-500.0,0.00019174,2]
[351137663,1738348282141,-786.06,0.00019174,2]
[351137664,1738348282151,-744.03,0.00019174,2]
[351137665,1738348282161,-1041.45,0.00019174,2]
[351137666,1738348282170,-679.36,0.00019174,2]
[351137667,1738348282179,-500.0,0.00019174,2]
[351137668,1738348282190,-639.49,0.00019174,2]
[351137669,1738348282199,-983.34,0.00019174,2]
[351137670,1738348282209,-853.27,0.00019174,2]
[351137671,1738348282220,-2290.49,0.00019174,2]
[351137672,1738348282229,-15748.87,0.00019174,2]
[351137673,1738348282239,-1756.23,0.00019174,2]
[351137674,1738348282248,-5804.66,0.00019174,2]
[351137675,1738348282258,-1011.15,0.00019174,2]
[351137676,1738348282267,-1398.05,0.00019174,2]
[351137677,1738348282276,-706.26,0.00019174,2]
[351137678,1738348282286,-1396.62,0.00019174,2]
[351137679,1738348282294,-1348.69,0.00019174,2]
[351137680,1738348282303,-688.94489978,0.00019174,2]
[351137681,1738348282312,-1491.37,0.00019174,2]
[351137682,1738348282321,-500.0,0.00019175,2]
[351137683,1738348282331,-500.0,0.00019175,2]
[351137684,1738348282340,-500.0,0.00019175,2]
[351137685,1738348282350,-500.0,0.00019175,2]
[351137686,1738348282359,-592.09,0.00019175,2]
[351137687,1738348282368,-541.54,0.00019175,2]
[351137688,1738348282378,-661.57,0.00019175,2]
[351137689,1738348282387,-568.28,0.00019175,2]
[351137690,1738348282396,-517.91,0.00019175,2]
[351137691,1738348282405,-500.0,0.00019175,2]
[351137692,1738348282415,-573.54,0.00019175,2]
[351137693,1738348282425,-730.37,0.00019175,2]
[351137694,1738348282434,-536.25,0.00019175,2]
[351137695,1738348282447,-978.34,0.00019175,2]
[351137696,1738348282456,-519.92,0.00019175,2]
[351137697,1738348282466,-932.35,0.00019175,2]
[351137698,1738348282475,-1577.73,0.00019175,2]
[351137699,1738348282484,-647.42,0.00019175,2]
[351137700,1738348282495,-286.106421,0.00019175,2]
[351137701,1738348282507,-500.0,0.00019175,2]
[351137702,1738348282516,-551.45,0.00019175,2]
[351137703,1738348282526,-2652.51,0.00019175,2]
[351137704,1738348282535,-616.52,0.00019175,2]
[351137705,1738348282546,-611.99,0.00019175,2]
[351137706,1738348282555,-1917.23,0.00019175,2]
[351137707,1738348282564,-1010.98,0.00019175,2]
[351137708,1738348282574,-345.181563,0.00019175,2]
[351137709,1738348282583,-1746.14,0.00019175,2]
[351137710,1738348282592,-957.27,0.00019175,2]
[351137711,1738348282602,-1127.11,0.00019175,2]
[351137712,1738348282612,-683.39,0.00019175,2]
[351137713,1738348282621,-834.53,0.00019175,2]
[351137714,1738348282632,-3304.95,0.00019175,2]
[351137715,1738348282642,-1375.96,0.00019175,2]
[351137716,1738348282652,-1152.1,0.00019175,2]
[351137717,1738348282661,-637.73,0.00019175,2]
[351137718,1738348282672,-861.45,0.00019175,2]
[351137719,1738348282682,-1174.79,0.00019175,2]
[351137720,1738348282695,-1552.68,0.00019175,2]
[351137721,1738348282705,-5050.15,0.00019175,2]
[351137722,1738348282715,-1714.15,0.00019175,2]
[351137723,1738348282725,-970.54,0.00019175,2]
[351137724,1738348282734,-974.2,0.00019175,2]
[351137725,1738348282743,-2977.2,0.00019175,2]
[351137726,1738348282864,-2472.78,0.00019175,2]
[351137727,1738348282884,-2130.65,0.00019175,2]
[351137728,1738348282894,-3082.33,0.00019175,2]
[351137729,1738348282904,-2310.79,0.00019175,2]
[351137730,1738348282914,-1236.46,0.00019175,2]
[351137731,1738348282923,-500.0,0.00019175,2]
[351137732,1738348282934,-1531.95,0.00019175,2]
[351137733,1738348282947,-1897.38,0.00019175,2]
[351137734,1738348282956,-500.0,0.00019175,2]
[351137735,1738348282966,-4150.61,0.00019175,2]
[351137736,1738348282975,-4363.87,0.00019175,2]
[351137737,1738348282985,-500.0,0.00019175,2]
[351137738,1738348282994,-977.31,0.00019175,2]
[351137739,1738348283004,-500.0,0.00019175,2]
[351137740,1738348283014,-500.0,0.00019175,2]
[351137741,1738348283023,-755.3,0.00019175,2]
[351137742,1738348283032,-1593.71,0.00019175,2]
[351137743,1738348283041,-789.61,0.00019175,2]
[351137744,1738348283050,-500.0,0.00019176,2]
[351137745,1738348283059,-500.0,0.00019176,2]
[351137746,1738348283069,-500.0,0.00019176,2]
[351137747,1738348283078,-772.66,0.00019176,2]
[351137748,1738348283088,-199.42515666,0.00019176,2]
[351137749,1738348283098,-500.0,0.00019176,2]
[351137750,1738348283107,-606.93,0.00019176,2]
[351137751,1738348283116,-522.94,0.00019176,2]
[351137752,1738348283126,-691.72,0.00019176,2]
[351137753,1738348283135,-694.08,0.00019176,2]
[351137754,1738348283145,-500.0,0.00019176,2]
[351137755,1738348283155,-500.0,0.00019176,2]
[351137756,1738348283165,-622.01,0.00019176,2]
[351137757,1738348283175,-500.0,0.00019176,2]
[351137758,1738348283184,-500.0,0.00019176,2]
[351137759,1738348283199,-799.89,0.00019176,2]
[351137760,1738348283208,-666.3,0.00019176,2]
[351137761,1738348283218,-536.21,0.00019176,2]
[351137762,1738348283227,-1030.96,0.00019176,2]
[351137763,1738348283236,-872.1,0.00019176,2]
[351137764,1738348283245,-544.21,0.00019176,2]
[351137765,1738348283255,-4715.16,0.00019176,2]
[351137766,1738348283264,-993.3,0.00019176,2]
[351137767,1738348283273,-2605.9,0.00019176,2]
[351137768,1738348283283,-4721.91,0.00019176,2]
[351137769,1738348283292,-2283.47,0.00019176,2]
[351137770,1738348283301,-939.45,0.00019176,2]
[351137771,1738348283311,-2389.08,0.00019176,2]
[351137772,1738348283320,-965.04,0.00019176,2]
[351137773,1738348283330,-557.93,0.00019176,2]
[351137774,1738348283339,-2395.63,0.00019176,2]
[351137775,1738348283348,-1060.87,0.00019176,2]
[351137776,1738348283357,-1276.49,0.00019176,2]
[351137777,1738348283367,-500.0,0.00019176,2]
[351137778,1738348283376,-973.6,0.00019176,2]
[351137779,1738348283386,-870.13,0.00019176,2]
[351137780,1738348283395,-1177.58,0.00019176,2]
[351137781,1738348283404,-510.61,0.00019177,2]
[351137782,1738348283414,-500.0,0.00019177,2]
[351137783,1738348283423,-363.45755256,0.00019177,2]
[351137784,1738348283432,-1699.0,0.00019178,2]
[351137785,1738348283445,-1699.0,0.00019178,2]
[351137786,1738348283454,-1699.0,0.00019178,2]
[351137787,1738348283463,-1699.0,0.00019178,2]
[351137788,1738348283473,-1699.0,0.00019178,2]
[351137789,1738348283482,-1699.0,0.00019178,2]
[351137790,1738348283492,-1699.0,0.00019178,2]
[351137791,1738348283502,-1699.0,0.00019178,2]
[351137792,1738348283514,-1699.0,0.00019178,2]
[351137793,1738348283524,-1699.0,0.00019178,2]
[351137794,1738348283533,-1699.0,0.00019178,2]
[351137795,1738348283542,-1699.0,0.00019178,2]
[351137796,1738348283553,-1699.0,0.00019178,2]
[351137797,1738348283562,-1699.0,0.00019178,2]
[351137798,1738348283572,-1699.0,0.00019178,2]
[351137799,1738348283581,-1699.0,0.00019178,2]
[351137800,1738348283593,-1699.0,0.00019178,2]
[351137801,1738348283602,-1117.0,0.00019178,2]
[351137802,1738348283612,-862.1622183,0.00019178,2]
[351137803,1738348283622,-150.0,0.00019178,2]
[351137804,1738348283632,-1455.79,0.00019178,2]
[351137805,1738348283641,-686.9,0.00019178,2]
[351137806,1738348283651,-424.65795997,0.00019178,2]
[351137807,1738348283660,-2551.27,0.00019178,2]
[351137808,1738348283670,-1359.74,0.00019178,2]
[351137809,1738348283680,-3164.08,0.00019178,2]
[351137810,1738348283692,-1771.52,0.00019178,2]
[351137811,1738348283701,-3352.95,0.00019178,2]
[351137812,1738348283710,-1723.08,0.00019178,2]
[351137813,1738348283719,-904.61,0.00019178,2]
[351137814,1738348283729,-3205.13,0.00019178,2]
[351137815,1738348283738,-2877.99,0.00019178,2]
[351137816,1738348283748,-2087.9,0.00019178,2]
[351137817,1738348283757,-2031.19,0.00019178,2]
[351137818,1738348283767,-1464.79,0.00019178,2]
[351137819,1738348283776,-7094.67,0.00019178,2]
[351137820,1738348283797,-846.73,0.00019178,2]
[351137821,1738348283813,-1572.93,0.00019178,2]
[351137822,1738348283833,-1436.17,0.00019178,2]
[351137823,1738348283851,-4000.0,0.00019178,2]
[351137824,1738348283866,-150.54,0.00019178,2]
[351137825,1738348283885,-150.0,0.00019178,2]
[351137826,1738348283905,-152.0,0.00019207,5]
[351137827,1738348283923,-150.0,0.00019216,4]
[351137828,1738348283943,-171.98,0.00019235,2]
[351137829,1738348283963,-150.0,0.00019238,4]
[351137830,1738348283985,-150.0,0.00019245,4]
[351137831,1738348284002,-500.0,0.00019245,2]
[351137832,1738348284021,-1002.36930834,0.00019258,2]
[351137833,1738348284035,-150.0,0.00019272,4]
[351137834,1738348284052,-2109.18147956,0.000193,2]
[351137835,1738348284072,-212.0,0.000193,2]
[351137836,1738348284091,-205.0,0.000193,2]
[351137837,1738348284104,-209.0,0.000193,2]
[351137838,1738348284122,-93487.79468396,0.000193,2]
[351137839,1738348284138,-500.0,0.00019311,2]
[351137840,1738348284155,-500.0,0.00019311,2]
[351137841,1738348284171,-574.19369036,0.00019311,2]
[351137842,1738348284187,-375.03792002,0.00019311,2]
[351137843,1738348284204,-786.06,0.00019311,2]
[351137844,1738348284219,-744.03,0.00019311,2]
[351137845,1738348284236,-1041.45,0.00019311,2]
[351137846,1738348284252,-679.36,0.00019311,2]
[351137847,1738348284268,-500.0,0.00019311,2]
[351137848,1738348284283,-639.49,0.00019311,2]
[351137849,1738348284299,-983.34,0.00019311,2]
[351137850,1738348284314,-853.27,0.00019311,2]
[351137851,1738348284329,-2290.49,0.00019311,2]
[351137852,1738348284343,-15748.87,0.00019311,2]
[351137853,1738348284358,-1756.23,0.00019311,2]
[351137854,1738348284373,-5804.66,0.00019311,2]
[351137855,1738348284388,-1011.15,0.00019311,2]
[351137856,1738348284403,-1398.05,0.00019311,2]
[351137857,1738348284418,-706.26,0.00019311,2]
[351137858,1738348284434,-1396.62,0.00019311,2]
[351137859,1738348284453,-1348.69,0.00019311,2]
[351137860,1738348284468,-1491.37,0.00019311,2]
[351137861,1738348284480,-613.91683395,0.00019312,2]
[351137862,1738348284489,-500.0,0.00019312,2]
[351137863,1738348284499,-500.0,0.00019312,2]
[351137864,1738348284512,-500.0,0.00019312,2]
[351137865,1738348284522,-592.09,0.00019312,2]
[351137866,1738348284531,-541.54,0.00019312,2]
[351137867,1738348284542,-661.57,0.00019312,2]
[351137868,1738348284552,-568.28,0.00019312,2]
[351137869,1738348284562,-517.91,0.00019312,2]
[351137870,1738348284572,-500.0,0.00019312,2]
[351137871,1738348284582,-573.54,0.00019312,2]
[351137872,1738348284592,-730.37,0.00019312,2]
[351137873,1738348284602,-536.25,0.00019312,2]
[351137874,1738348284612,-978.34,0.00019312,2]
[351137875,1738348284622,-519.92,0.00019312,2]